{"text_format":"1","workbook":"xlsx","n_sheets":3,"sheets":["Návod","Reálný plán","Simulace"],"not_rendered":{"charts":9,"images":0,"macros":1,"external_links":0,"defined_names":0,"comments":2,"pivot_tables":0},"unopened":[],"bounds":{"document_bytes":16777216,"sheet_cells":100000,"rows_first":2000,"rows_last":500,"rows_between":2000,"halvings":0,"cell_chars":16384,"cell_head_chars":4096},"cells_cut":0,"cells_raw":0,"read":"whole","date_system":"1900"}

{"sheet":"Návod","index":0,"n_rows":17,"n_cols":4,"rows_kept":17,"cut":false,"hidden":false,"merged":[[2,3,4,3],[2,1,4,1]]}
[]
[]
[null,"Reálný plán",null,"Simulace"]
[]
[]
[]
[null,"Přehled",null,"Upřesňující typy"]
[null,"Sekce přehled je čistě informativní a zobrazuje Vám celkový součet příjmů, výdajů a spoření+investic za daný měsíc a maximální a minimální částku z každé z nich. Celkové výdaje by neměly přesáhnout celkové příjmy.",null,"Sekce upřesňující typy je určená k rozvržení jednotlivých pohybů Vašich financí. Částky lze měnit pomocí šipek nahoru a dolů, případně přepsáním samotného čísla. Jednotlivé typy (kategorie) lze také jednoduše změnit prostým přepsáním."]
[]
[null,"Srovnání s ideálním stavem",null,"Přehled"]
[null,"Sekce srovnání s ideálním stavem rozděluje Vaše příjmy do dvou hlavních kategorií výdajů a do spoření. V základu tento ideální stav využívá pravidla 50/30/20, ale procentuální rozložení je možné změnit dle osobních preferencí a potřeb.",null,"Sekce přehled je čistě informativní a zobrazuje Vám celkový součet příjmů, výdajů a spoření+investic za daný měsíc. Celkové výdaje by neměly přesáhnout celkové příjmy."]
[]
[null,"Tabulka příjmů a výdajů",null,"Srovnání s ideálním stavem"]
[null,"Sekce Tabulka příjmů a výdajů je určena pro zapisování pohybů Vašich financí. Pro správnou funkčnost je potřeba vždy vybrat typ a také upřesňující typ dané položky. Jednotlivé kategorie je možné jednoduše změnit v další sekci.",null,"Sekce srovnání s ideálním stavem rozděluje nastavené příjmy do dvou hlavních kategorií výdajů a do spoření. V základu tento ideální stav využívá pravidla 50/30/20, ale procentuální rozložení je možné změnit dle osobních preferencí a potřeb."]
[]
[null,"Upřesňující typy"]
[null,"Sekce upřesňující typy je přehledem kategorií pohybů Vašich financí za daný měsíc. Kategorie lze jednoduše upravovat prostým přepsáním. Grafy v této sekci slouží k vizualizaci pro lepší porozumění."]

{"sheet":"Reálný plán","index":1,"n_rows":20,"n_cols":17,"rows_kept":20,"cut":false,"hidden":false,"merged":[[6,10,6,11],[2,1,2,16],[5,5,5,6]]}
[]
[]
[null,"Měsíční rozpočtový plán"]
[]
[]
[null,null,"Přehled",null,null,{"$f":"IF(D8>D9,\"Příjmy pokrývají výdaje\",IF(D8<D9,\"Příjmy nepokrývají výdaje\",\"\"))","v":""},null,null,null,"Srovnání s ideálním stavem"]
[null,null,null,"Celkem","Minimální částka","Maximální částka",null,null,null,null,"Ideální stav",null,"Realita","Odchylka od ideálního stavu"]
[null,null,"Příjmy",{"$f":"SUMIF(Table1[Typ],\"Příjem\",Table1[Částka])","v":0},{"$f":"_xlfn.MINIFS(Table1[Částka],Table1[Typ],\"Příjem\")","v":0},{"$f":"_xlfn.MAXIFS(Table1[Částka],Table1[Typ],\"Příjem\")","v":0},null,null,null,"Nezbytné výdaje",0.5,{"$f":"SUMIF(Table1[Typ],\"Příjem\",Table1[Částka])*K8","v":0},{"$f":"SUMIF(Table1[Typ],\"Nezbytný výdaj\",Table1[Částka])","v":0},{"$f":"L8-M8","v":0}]
[null,null,"Výdaje",{"$f":"SUMIF(Table1[Typ],\"Nezbytný výdaj\",Table1[Částka])+SUMIF(Table1[Typ],\"Výdaj pro radost\",Table1[Částka])","v":0},{"$f":"_xlfn.MINIFS(Table1[Částka],Table1[Typ],\"Výdaj\")","v":0},{"$f":"_xlfn.MAXIFS(Table1[Částka],Table1[Typ],\"Výdaj\")","v":0},null,null,null,"Výdaje pro radost",0.3,{"$f":"SUMIF(Table1[Typ],\"Příjem\",Table1[Částka])*K9","v":0},{"$f":"SUMIF(Table1[Typ],\"Výdaj pro radost\",Table1[Částka])","v":0},{"$f":"L9-M9","v":0}]
[null,null,"Investice + spoření",{"$f":"SUMIF(Table1[Typ],\"Investice\",Table1[Částka])","v":0},{"$f":"_xlfn.MINIFS(Table1[Částka],Table1[Typ],\"Investice\")","v":0},{"$f":"_xlfn.MAXIFS(Table1[Částka],Table1[Typ],\"Investice\")","v":0},null,null,null,"Investice + spoření",0.2,{"$f":"SUMIF(Table1[Typ],\"Příjem\",Table1[Částka])*K10","v":0},{"$f":"SUMIF(Table1[Typ],\"Investice\",Table1[Částka])","v":0},{"$f":"-L10+M10","v":0}]
[]
[]
[null,null,"Tabulka příjmů a výdajů",null,null,null,null,null,null,"Upřesňující typy"]
[null,null,"Datum","Popis","Částka","Typ","Upřesňující typ",null,null,"Příjmy",{"$f":"SUMIF(Table1[Typ],\"Příjem\",Table1[Částka])","v":0},"Nezbytné výdaje",{"$f":"SUMIF(Table1[Typ],\"Nezbytný výdaj\",Table1[Částka])","v":0},"Výdaje pro radost",{"$f":"SUMIF(Table1[Typ],\"Výdaj pro radost\",Table1[Částka])","v":0},"Investice",{"$f":"SUMIF(Table1[Typ],\"Investice\",Table1[Částka])","v":0}]
[null,null,null,null,null,null,null,null,null,"Brigáda",{"$f":"SUMIF(Table1[Upřesňující typ],J15,Table1[Částka])","v":0},"Bydlení + energie",{"$f":"SUMIF(Table1[Upřesňující typ],L15,Table1[Částka])","v":0},"Sport",{"$f":"SUMIF(Table1[Upřesňující typ],N15,Table1[Částka])","v":0},"Akcie",{"$f":"SUMIF(Table1[Upřesňující typ],P15,Table1[Částka])","v":0}]
[null,null,null,null,null,null,null,null,null,"Podnikání",{"$f":"SUMIF(Table1[Upřesňující typ],J16,Table1[Částka])","v":0},"Stravování",{"$f":"SUMIF(Table1[Upřesňující typ],L16,Table1[Částka])","v":0},"Kulturní akce",{"$f":"SUMIF(Table1[Upřesňující typ],N16,Table1[Částka])","v":0},"Nemovitosti",{"$f":"SUMIF(Table1[Upřesňující typ],P16,Table1[Částka])","v":0}]
[null,null,null,null,null,null,null,null,null,"Mimořádný příjem",{"$f":"SUMIF(Table1[Upřesňující typ],J17,Table1[Částka])","v":0},"Oblečení",{"$f":"SUMIF(Table1[Upřesňující typ],L17,Table1[Částka])","v":0},"Partner",{"$f":"SUMIF(Table1[Upřesňující typ],N17,Table1[Částka])","v":0},"Spořicí účet",{"$f":"SUMIF(Table1[Upřesňující typ],P17,Table1[Částka])","v":0}]
[null,null,null,null,null,null,null,null,null,"Kapitálový příjem",{"$f":"SUMIF(Table1[Upřesňující typ],J18,Table1[Částka])","v":0},"Doprava",{"$f":"SUMIF(Table1[Upřesňující typ],L18,Table1[Částka])","v":0},"Domácí mazlíčci",{"$f":"SUMIF(Table1[Upřesňující typ],N18,Table1[Částka])","v":0},"Podílové fondy",{"$f":"SUMIF(Table1[Upřesňující typ],P18,Table1[Částka])","v":0}]
[null,null,null,null,null,null,null,null,null,"Dar",{"$f":"SUMIF(Table1[Upřesňující typ],J19,Table1[Částka])","v":0},"Péče o tělo",{"$f":"SUMIF(Table1[Upřesňující typ],L19,Table1[Částka])","v":0},"Dekorace",{"$f":"SUMIF(Table1[Upřesňující typ],N19,Table1[Částka])","v":0},"Penzijní spoření",{"$f":"SUMIF(Table1[Upřesňující typ],P19,Table1[Částka])","v":0}]
[null,null,null,null,null,null,null,null,null,"Ostatní příjem",{"$f":"SUMIF(Table1[Upřesňující typ],J20,Table1[Částka])","v":0},"Vzdělání",{"$f":"SUMIF(Table1[Upřesňující typ],L20,Table1[Částka])","v":0},"Záliby",{"$f":"SUMIF(Table1[Upřesňující typ],N20,Table1[Částka])","v":0},"Dluhopisy",{"$f":"SUMIF(Table1[Upřesňující typ],P20,Table1[Částka])","v":0}]

{"sheet":"Simulace","index":2,"n_rows":17,"n_cols":22,"rows_kept":17,"cut":false,"hidden":false,"merged":[[2,1,2,22],[13,18,13,19],[5,2,5,4],[5,21,5,22]]}
[]
[]
[null,"Simulace rozpočtového plánu"]
[]
[]
[null,null,"Upřesňující typy",null,null,null,null,null,null,null,null,null,null,null,null,null,null,"Přehled",null,null,null,{"$f":"IF(S8>S9,\"Příjmy pokrývají výdaje\",IF(S8<S9,\"Příjmy nepokrývají výdaje\",\"\"))","v":""}]
[null,null,"Příjmy",{"$f":"SUM(D8:D13)","v":0},null,"Nezbytné výdaje",{"$f":"SUM(G8:G13)","v":0},null,"Výdaje pro radost",{"$f":"SUM(J8:J13)","v":0},null,"Investice",{"$f":"SUM(M8:M13)","v":0},null,null,null,null,null,"Celkem"]
[null,null,"Zaměstnání",0,null,"Bydlení + energie",0,null,"Sport",0,null,"Akcie",0,null,null,null,null,"Příjmy",{"$f":"D7","v":0}]
[null,null,"Podnikání",0,null,"Stravování",0,null,"Kulturní akce",0,null,"Nemovitosti",0,null,null,null,null,"Výdaje",{"$f":"SUM(G7,J7)","v":0}]
[null,null,"Mimořádný příjem",0,null,"Oblečení",0,null,"Partner",0,null,"Spořicí účet",0,null,null,null,null,"Investice + spoření",{"$f":"M7","v":0}]
[null,null,"Kapitálový příjem",0,null,"Doprava",0,null,"Domácí mazlíčci",0,null,"Podílové fondy",0]
[null,null,"Dar",0,null,"Péče o tělo",0,null,"Dekorace",0,null,"Penzijní spoření",0]
[null,null,"Ostatní příjem",0,null,"Vzdělání",0,null,"Záliby",0,null,"Dluhopisy",0,null,null,null,null,"Srovnání s ideálním stavem"]
[null,null,null,null,null,null,null,null,null,null,null,null,null,null,null,null,null,null,"Ideální stav",null,"Realita","Odchylka od ideálního stavu"]
[null,null,null,null,null,null,null,null,null,null,null,null,null,null,null,null,null,"Nezbytné výdaje",0.5,{"$f":"$S$8*S15","v":0},{"$f":"G7","v":0},{"$f":"T15-U15","v":0}]
[null,null,null,null,null,null,null,null,null,null,null,null,null,null,null,null,null,"Výdaje pro radost",0.3,{"$f":"$S$8*S16","v":0},{"$f":"J7","v":0},{"$f":"T16-U16","v":0}]
[null,null,null,null,null,null,null,null,null,null,null,null,null,null,null,null,null,"Investice + spoření",0.2,0,{"$f":"M7","v":0},{"$f":"-T17+U17","v":0}]